Cogmind - Beta 10.2 @@@ ROGUE MODE // 2020.10.29 @ 23:54:23 // Halloween2020/ForbiddenLore Player: Plexion Result: Destroyed by as-54342 with Assembled Focal Cannon Performance ------------- Evolutions (4) 2000 Regions Visited (17) 3400 Robots Destroyed (126) 630 Value Destroyed (2377) 2377 Prototype IDs (47) 940 Alien Tech Used (0) 0 Bonus (1030) 1030 TOTAL SCORE: 10377 Bonus ------- High Alert Combat Kills 11 Aligned with FarCom 300 Met Data Miner 300 Met Imprinter 300 Exposed GOLEM Chamber 500 Friendly Fire -381 Cogmind --------- Core Integrity 0/850 Matter 33/300 Energy 99/100 System Corruption 14% Temperature Cool (6) Movement Core (50) Location -6/Deep Caves Parts ------- > --- POWER (2) -------- (None) > --- PROPULSION (4) --- (None) > --- UTILITY (7) ------ (None) > --- WEAPON (2) ------- (None) > --- INVENTORY (4) ---- Experimental Targeting Computer Hacking Drone Bay Long-range Missile Launcher Peak State ------------ > --- POWER ------------ Light Fission Core > --- PROPULSION ------- Improved Medium Treads Improved Flight Unit Improved VTOL Module Improved VTOL Module > --- UTILITY ---------- Lightpack 2.0 Long-range Sensor Array Advanced Signal Interpreter Makeshift Armor Plating Makeshift Armor Plating Hacking Suite > --- WEAPON ----------- Guided Missile Launcher > --- INVENTORY -------- Makeshift Leg Gravity Neutralizing Apparatus Long-range Terrain Scanner Experimental Targeting Computer Advanced Transmission Jammer Improved Phase Shifter EX Chip 1 EX Chip 2 EX Chip 2 System Shield Bomb Drone Bay Hacking Drone Bay Phase Cannon Makeshift Shrapnel Gun 8R-AWN's Boregun Shock Bomb Launcher Shock Bomb Launcher Grenade Launcher Rocket Launcher Heavy Rocket Launcher Long-range Missile Launcher Plasma Cutter CR-A16's Pointy Stick [Rating: 79] Favorites ----------- Power Light Deuterium Engine Engine Light Deuterium Engine Power Core Reinforced Fission Core Propulsion Light Treads Treads Light Treads Leg Makeshift Leg Flight Unit Improved VTOL Module Utility High-capacity Storage Unit Device Long-range Sensor Array Storage High-capacity Storage Unit Processor Advanced Signal Interpreter Hackware Hacking Suite Protection Light Armor Plating Weapon Heavy Assault Rifle Energy Gun Particle Gun Energy Cannon Light EM Pulse Cannon Ballistic Gun Heavy Assault Rifle Launcher Grenade Launcher Special Weapon Remote Datajack Slashing Weapon Longsword +1 Piercing Weapon Spear Build | -11 -10 -10 -9 -9 -9 -8 -8 -7 -7 -7 -7 -6 -6 -6 -6 -6 -6 ------- Run | Scr Mat Min Mat Min Exi Min Mat Fac Low Low Dat Pro Fac Low Low Zio Dee Slots Evolved 8 | . . . 2 . . . 2 2 . . . . 2 . . . . Power 1 | . . . . . . . . . . . . . 1 . . . . Propulsion 2 | . . . . . . . 1 1 . . . . . . . . . Utility 5 | . . . 2 . . . 1 1 . . . . 1 . . . . Weapon . | . . . . . . . . . . . . . . . . . . Parts Attached 151 | 6 5 5 13 1 23 5 26 26 . . 1 . 5 . . 34 1 Power 15 | 1 . 1 1 . 2 . . 7 . . . . 1 . . 2 . Engine 12 | 1 . . 1 . 1 . . 7 . . . . . . . 2 . Core 3 | . . 1 . . 1 . . . . . . . 1 . . . . Reactor . | . . . . . . . . . . . . . . . . . . Propulsion 38 | 2 3 . 3 . 2 . 11 7 . . . . . . . 10 . Treads 22 | 2 3 . 3 . 2 . 11 . . . . . . . . 1 . Leg 9 | . . . . . . . . . . . . . . . . 9 . Wheel . | . . . . . . . . . . . . . . . . . . Hover . | . . . . . . . . . . . . . . . . . . Flight 7 | . . . . . . . . 7 . . . . . . . . . Utility 33 | 1 2 . 3 . 9 . 2 11 . . . . 1 . . 4 . Device 7 | . . . . . 1 . . 5 . . . . . . . 1 . Storage 10 | 1 2 . 1 . 5 . . 1 . . . . . . . . . Processor 2 | . . . . . . . 1 1 . . . . . . . . . Hackware 5 | . . . . . . . . 4 . . . . 1 . . . . Protection 9 | . . . 2 . 3 . 1 . . . . . . . . 3 . Artifact . | . . . . . . . . . . . . . . . . . . Weapon 65 | 2 . 4 6 1 10 5 13 1 . . 1 . 3 . . 18 1 Energy Gun 3 | . . . 1 . . . 2 . . . . . . . . . . Energy Cannon 4 | . . . . . . . 1 . . . . . 2 . . 1 . Ballistic Gun 26 | 2 . 2 3 1 8 2 6 . . . . . . . . 2 . Ballistic Cannon . | . . . . . . . . . . . . . . . . . . Launcher 18 | . . 2 2 . 1 2 1 . . . . . . . . 9 1 Special Weapon 2 | . . . . . . . . . . . 1 . . . . 1 . Impact Weapon . | . . . . . . . . . . . . . . . . . . Slashing Weapon 10 | . . . . . 1 1 3 1 . . . . . . . 4 . Piercing Weapon 2 | . . . . . . . . . . . . . 1 . . 1 . Special Melee Weapon . | . . . . . . . . . . . . . . . . . . Unidentified Prototypes 7 | . . . . . 3 . . 2 . . . . . . . 2 . Parts Lost 64 | . . 3 1 . 13 1 12 1 . . . . . 1 . 26 6 Power 8 | . . 1 . . 2 . . 1 . . . . . 1 . 3 . Propulsion 21 | . . . 1 . 2 . 5 . . . . . . . . 10 3 Utility 11 | . . . . . 3 . 1 . . . . . . . . 6 1 Weapon 24 | . . 2 . . 6 1 6 . . . . . . . . 7 2 Highest Loss Streak 13 | . . 3 1 . 13 1 5 1 . . . . . 1 . 8 5 Average Slot Usage (%) 82 | . 94 99 98 100 95 90 92 79 84 82 82 84 85 83 80 59 32 Engine 5 | . 14 9 10 11 9 . . 5 7 7 7 7 6 3 . 2 . Core 3 | . . 4 . . 1 11 9 . . . . . 5 6 6 2 . Treads 13 | . 28 28 22 22 22 22 26 . . . . . . . . 2 . Leg 2 | . . . . . . . . . . . . . . . . 10 19 Flight 8 | . . . . . . . . 29 30 30 30 30 26 26 26 8 . Device 2 | . . . . . . . . 5 7 7 7 7 6 6 6 4 5 Storage 18 | . 22 28 33 33 28 44 36 7 7 7 7 7 6 6 6 4 . Processor 2 | . . . . . . . 1 6 7 7 7 7 6 6 6 2 . Hackware 4 | . . . . . . . . 13 15 15 15 15 19 20 20 5 . Protection 4 | . . . 9 11 12 . 1 . . . . . . . . 5 . Ballistic Gun 9 | . 28 19 18 21 20 6 9 . . . . . . . . . . Launcher 1 | . . 8 1 . . 6 . . . . . . . . . 3 . Slashing Weapon 1 | . . . . . 1 . . 6 7 5 . . . . . 3 . Naked Turns 4 | . . . . . . . . . . . . . . . . . 4 Heaviest Build 159 | 13 57 58 81 81 156 154 159 152 15 15 15 15 21 21 16 31 11 Greatest Support 76 | 40 40 40 40 40 40 40 66 40 18 24 18 18 24 24 24 76 60 Greatest Overweight (x) 4 | . 1 1 2 2 3 3 3 4 . . . . . . . 1 . Average Overweight (x) . | . . 1 1 1 1 3 2 . . . . . . . . . . Largest Inventory Capacity 56 | 6 18 18 24 24 36 36 36 56 24 24 24 24 24 24 24 24 4 Average Capacity 22 | 4 13 18 24 24 24 36 36 24 24 24 24 24 24 24 24 17 4 Most Carried 36 | 4 18 18 24 24 30 32 35 36 24 24 23 22 24 23 24 24 4 Average Carried 20 | 1 8 16 21 23 21 29 32 23 24 23 22 22 23 23 23 16 3 Final Capacity 36 | 6 18 18 24 24 36 36 36 24 24 24 24 24 24 24 24 4 4 Final Carried 35 | 4 17 16 24 24 30 32 35 24 24 23 22 22 23 23 24 4 3 Class Distribution -------------------- 51% | Hauler-Mutant 22% | Mutant 12% | Hacker-Sprinter 8% | Hauler-Sprinter Dominant Class ---------------- Mutant | -10/Materials Mutant | -10/Mines Hauler-Mutant | -9/Materials Hauler-Mutant | -9/Mines Hauler-Mutant | -9/Exiles Hauler-Mutant | -8/Mines Hauler-Mutant | -8/Materials Hauler-Sprinter | -7/Factory Hauler-Sprinter | -7/Lower Caves Hauler-Sprinter | -7/Lower Caves Hauler-Sprinter | -7/Data Miner Hauler-Sprinter | -6/Proximity Caves Hacker-Sprinter | -6/Factory Hacker-Sprinter | -6/Lower Caves Hacker-Sprinter | -6/Lower Caves Hauler-Mutant | -6/Zion Mutant | -6/Deep Caves Resources | -11 -10 -10 -9 -9 -9 -8 -8 -7 -7 -7 -7 -6 -6 -6 -6 -6 -6 ----------- Run | Scr Mat Min Mat Min Exi Min Mat Fac Low Low Dat Pro Fac Low Low Zio Dee Matter Collected 3057 | 156 256 218 161 11 811 99 515 235 20 . . . 65 . . 483 27 Remotely . | . . . . . . . . . . . . . . . . . . Salvage Created 3244 | . 330 45 361 50 152 176 1163 275 . . . . 39 . . 613 40 Parts 239 | . 24 2 37 8 16 20 48 24 . . . . 4 . . 56 . Haulers Intercepted 5 | . 1 . 1 . . . 2 1 . . . . . . . . . Recyclers Shooed 2 | . 1 . . . . 1 . . . . . . . . . . . Parts Field Recycled . | . . . . . . . . . . . . . . . . . . Retrieved Matter . | . . . . . . . . . . . . . . . . . . Parts Self-Destructed . | . . . . . . . . . . . . . . . . . . Prevented 3 | . . . . . . . . . . . . . . 1 . 2 . Kills | -11 -10 -10 -9 -9 -9 -8 -8 -7 -7 -7 -7 -6 -6 -6 -6 -6 -6 ------- Run | Scr Mat Min Mat Min Exi Min Mat Fac Low Low Dat Pro Fac Low Low Zio Dee Combat Hostiles Destroyed 73 | . 9 6 9 3 6 14 18 3 . . . . . . . 2 3 Melee 14 | . . . . . 1 3 4 3 . . . . . . . . 3 Guns 24 | . 9 1 6 . . . 7 . . . . . . . . 1 . Cannons 6 | . . . . . . . 5 . . . . . . . . 1 . AOE 27 | . . 5 3 3 5 11 . . . . . . . . . . . Classes Destroyed 19 | . 5 4 3 . . . 3 1 . . . . . . . 3 . Worker 3 | . . 1 . . . . . 2 . . . . . . . . . Builder 2 | . . . 1 . . . . 1 . . . . . . . . . Tunneler 1 | . . 1 . . . . . . . . . . . . . . . Hauler 5 | . 1 . 1 . . . 2 1 . . . . . . . . . Recycler 1 | . 1 . . . . . . . . . . . . . . . . Mechanic 1 | . . . . . . . 1 . . . . . . . . . . Operator 3 | . 1 . . . . . 1 1 . . . . . . . . . Watcher 3 | . . . 2 . . . . . . . . . 1 . . . . Swarmer 23 | . 6 . 3 3 . 11 . . . . . . . . . . . Grunt 20 | . 3 . 3 . . 3 11 . . . . . . . . . . Brawler 1 | . . . . . . . 1 . . . . . . . . . . Sentry 8 | . . . 3 . . . 5 . . . . . . . . . . Demolisher 1 | . . 1 . . . . . . . . . . . . . . . Hunter 1 | . . . . . . . 1 . . . . . . . . . . Programmer 3 | . . . . . . . . 3 . . . . . . . . . Zionite 31 | . . . . . . . . . . . . . . . . 31 . Tinkerer 1 | . . . . . . . . . . . . . . . . 1 . Assembled 14 | . . 5 . . 6 . . . . . . . . . . . 3 Martyr 1 | . . . . . . . . . . . . . . . . 1 . Mutant 1 | . . . . . . . . . . . . . . . . 1 . Best Kill Streak 8 | . 3 5 4 3 6 8 3 2 . . . . 1 . . 6 3 Combat Bots Only 8 | . 3 3 3 3 5 8 3 1 . . . . . . . 1 3 Max Kills in Single Turn 4 | . 1 2 4 2 4 3 1 1 . . . . 1 . . 2 1 Gunslinging . | . . . . . . . . . . . . . . . . . . Exploded 4 | . . 2 3 2 4 3 . . . . . . . . . . . Melee 1 | . . . . . 1 1 1 1 . . . . . . . . 1 Uniques/NPCs Destroyed 2 | . . . . . 2 . . . . . . . . . . . . EX-HEX (-9/Exiles) 8R-AWN (-9/Exiles) Combat | -11 -10 -10 -9 -9 -9 -8 -8 -7 -7 -7 -7 -6 -6 -6 -6 -6 -6 -------- Run | Scr Mat Min Mat Min Exi Min Mat Fac Low Low Dat Pro Fac Low Low Zio Dee Damage Taken 9498 | . 281 553 279 25 1485 167 2358 223 . 5 . . 63 157 . 3155 747 Core 1797 | . 52 131 86 . 229 23 352 66 . 5 . . . 35 . 442 376 Absorbed by Shields . | . . . . . . . . . . . . . . . . . . Core Remaining (%) 53 | 100 . 26 . . . 15 36 . . . . 89 . . . . . Volleys Fired 342 | . 32 14 23 2 65 7 91 . . . 1 . 1 . . 105 1 Largest 2 | . 2 2 2 1 2 1 2 . . . 1 . 1 . . 2 1 Hottest 121 | . 40 40 83 36 46 30 121 . . . 30 . 90 . . 120 39 Shots Fired 527 | . 64 18 44 2 125 7 160 . . . 1 . 1 . . 104 1 Gun 372 | . 64 11 42 . 120 . 117 . . . . . . . . 18 . Cannon 72 | . . . . . . . 34 . . . . . 1 . . 37 . Launcher 77 | . . 7 2 2 5 7 9 . . . . . . . . 44 1 Special 6 | . . . . . . . . . . . 1 . . . . 5 . Kinetic 348 | . 64 11 34 . 120 . 101 . . . . . . . . 18 . Thermal 67 | . . . 8 . . . 16 . . . . . 1 . . 42 . Explosive 51 | . . 7 2 . 5 7 . . . . . . . . . 29 1 Electromagnetic 60 | . . . . 2 . . 43 . . . . . . . . 15 . Robot Hit Streak 21 | . 6 3 21 . 21 2 14 . . . . . . . . 12 . Robot Miss Streak 6 | . 5 4 1 . 2 1 4 . . . 1 . . . . 6 1 Penetration Max . | . . . . . . . . . . . . . . . . . . Secondary Targets . | . . . . . . . . . . . . . . . . . . Shots Hit Robots 414 | . 37 7 36 . 100 6 128 19 . . . . 3 . . 73 5 Core Hits 215 | . 16 17 18 3 36 21 44 8 . . . . 2 . . 42 8 Critical Hits 14 | . . . . . 1 1 2 2 . . . . 1 . . 7 . Critical Kills 7 | . . . . . . 1 1 1 . . . . 1 . . 3 . Critical Parts Destroyed 6 | . . . . . . . 1 1 . . . . . . . 4 . Melee Attacks 170 | . . . . . 1 4 11 57 . 1 . . 44 5 2 28 17 Impact . | . . . . . . . . . . . . . . . . . . Slashing 102 | . . . . . 1 4 11 57 . 1 . . . . . 28 . Piercing 68 | . . . . . . . . . . . . . 44 5 2 . 17 Sneak Attacks 7 | . . . . . . . 1 5 . . . . 1 . . . . Combat Hostiles . | . . . . . . . . . . . . . . . . . . Follow-up Attacks . | . . . . . . . . . . . . . . . . . . Damage Inflicted 11248 | . 461 297 678 121 1441 795 2599 1436 . . . . 162 . . 3005 253 Guns 3188 | . 461 98 475 . 993 . 979 . . . . . . . . 182 . Cannons 1246 | . . . . . . . 638 . . . . . . . . 608 . Explosions 3404 | . . 199 203 121 404 622 395 . . . . . . . . 1397 63 Melee 3285 | . . . . . 44 173 575 1367 . . . . 162 . . 774 190 Ramming 81 | . . . . . . . 12 69 . . . . . . . . . Kinetic 2852 | . 461 98 342 . 993 . 776 . . . . . . . . 182 . Thermal 1183 | . . . 133 39 . . 289 . . . . . . . . 722 . Explosive 2448 | . . 199 203 . 404 622 . . . . . . . . . 957 63 Electromagnetic 1399 | . . . . 82 . . 947 . . . . . . . . 370 . Impact . | . . . . . . . . . . . . . . . . . . Slashing 2933 | . . . . . 44 173 575 1367 . . . . . . . 774 . Piercing 352 | . . . . . . . . . . . . . 162 . . . 190 Highest Corruption 14 | . . . . . . . . 1 1 1 1 1 . . . 14 14 Average Corruption 8 | . . . . . . . . 1 1 1 1 1 . . . 13 14 Corruption Purged . | . . . . . . . . . . . . . . . . . . Effects 100 | . . . . . . . . 4 . 1 1 . . . . 72 22 Message Errors 20 | . . . . . . . . 2 . . . . . . . 12 6 Matter Fused 11 | . . . . . . . . . . . . . . . . 9 2 Heat Flow Errors 11 | . . . . . . . . . . . . . . . . 8 3 Energy Discharges 7 | . . . . . . . . . . . . . . . . 5 2 Parts Rejected 2 | . . . . . . . . . . . . . . . . 2 . Data Loss (minor) 13 | . . . . . . . . 2 . 1 . . . . . 10 . Data Loss (major) 6 | . . . . . . . . . . . . . . . . 2 4 Misfires 1 | . . . . . . . . . . . . . . . . 1 . Misdirections 7 | . . . . . . . . . . . . . . . . 3 4 Targeting Errors 19 | . . . . . . . . . . . 1 . . . . 17 1 Weapon Failures 3 | . . . . . . . . . . . . . . . . 3 . Overload Shots . | . . . . . . . . . . . . . . . . . . Overflow Damage 607 | . . . . 1 6 54 148 274 . . . . . . . 124 . Projectiles 9 | . . . . . . . 5 . . . . . . . . 4 . Explosions 164 | . . . . 1 6 54 6 . . . . . . . . 97 . Melee 434 | . . . . . . . 137 274 . . . . . . . 23 . Knockbacks . | . . . . . . . . . . . . . . . . . . Impact . | . . . . . . . . . . . . . . . . . . Kinetic . | . . . . . . . . . . . . . . . . . . Secondary . | . . . . . . . . . . . . . . . . . . Self-Inflicted Damage 457 | . . 35 32 16 . 22 44 69 . . . . . . . 239 . Shots 18 | . . 2 1 2 . 1 3 . . . . . . . . 9 . Rammed 2 | . . . . . . . 1 . . . . . . . . . 1 Targets Rammed 3 | . . . . . . . 1 . . . . . . . . 1 1 Kicked 1 | . . . . . . . . . . . . . . . . 1 . Crushed . | . . . . . . . . . . . . . . . . . . Highest Temperature 367 | . . 2 192 . 10 16 367 363 . . 4 . 34 3 . 345 243 Average Temperature 86 | . . 2 86 . 4 13 82 185 . . 4 . 12 3 . 102 106 Received Heat Transfer 1599 | . 36 . 78 . . 18 1170 . . . . . . 39 . 180 78 Effects 7 | . . . . . . . 5 . . . . . . . . 2 . Shutdowns 1 | . . . . . . . 1 . . . . . . . . . . Energy Bleed 1 | . . . . . . . 1 . . . . . . . . . . Interference 4 | . . . . . . . 2 . . . . . . . . 2 . Short Circuit 1 | . . . . . . . 1 . . . . . . . . . . Siege Activations . | . . . . . . . . . . . . . . . . . . Robots Corrupted 3 | . . . . . . . 3 . . . . . . . . . . Combat Hostiles 2 | . . . . . . . 2 . . . . . . . . . . Parts Fried 8 | . . . . . . . 5 . . . . . . . . 3 . Impact Corruptions . | . . . . . . . . . . . . . . . . . . Robots Melted . | . . . . . . . . . . . . . . . . . . Combat Hostiles . | . . . . . . . . . . . . . . . . . . Parts Melted 3 | . . . . . . . . . . . . . . . . 3 . Heat Transferred 1787 | . . . 296 . . . 581 . . . . . . . . 910 . Parts Sabotaged . | . . . . . . . . . . . . . . . . . . Parts Stolen 1 | . . . . . . . . . . 1 . . . . . . . Parts Stripped . | . . . . . . . . . . . . . . . . . . Power Chain Reactions 3 | . . . . 1 . . 1 . . . . . . . . 1 . Missiles Intercepted . | . . . . . . . . . . . . . . . . . . Alert | -11 -10 -10 -9 -9 -9 -8 -8 -7 -7 -7 -7 -6 -6 -6 -6 -6 -6 ------- Run | Scr Mat Min Mat Min Exi Min Mat Fac Low Low Dat Pro Fac Low Low Zio Dee Peak Influence 431 | . 212 47 169 135 . 389 431 207 . . . . 242 . . . . Initial 151 | . . 37 . 65 . . 151 142 . . . . . . . . . Average 121 | . 111 30 63 134 . 114 242 112 . . . . 57 . . . . Maximum Alert Level 2 | . 1 . . . . 1 2 1 . . . . 1 . . . . Low Security (%) 80 | 100 97 100 100 100 . 72 31 91 . . . . 99 . . . . Level 1 19 | . 2 . . . . 27 65 8 . . . . . . . . . Level 2 . | . . . . . . . 2 . . . . . . . . . . Level 3 . | . . . . . . . . . . . . . . . . . . Level 4 . | . . . . . . . . . . . . . . . . . . Level 5 . | . . . . . . . . . . . . . . . . . . High Security . | . . . . . . . . . . . . . . . . . . Max Security . | . . . . . . . . . . . . . . . . . . Squads Dispatched 12 | . 2 . . . . . 3 4 . . . . 3 . . . . Investigation . | . . . . . . . . . . . . . . . . . . Extermination 3 | . . . . . . . . 2 . . . . 1 . . . . Reinforcement 9 | . 2 . . . . . 3 2 . . . . 2 . . . . Assault . | . . . . . . . . . . . . . . . . . . Garrison . | . . . . . . . . . . . . . . . . . . Intercept . | . . . . . . . . . . . . . . . . . . Construction Impeded 1 | . . . . . . . 1 . . . . . . . . . . Haulers Reinforced . | . . . . . . . . . . . . . . . . . . Stealth | -11 -10 -10 -9 -9 -9 -8 -8 -7 -7 -7 -7 -6 -6 -6 -6 -6 -6 --------- Run | Scr Mat Min Mat Min Exi Min Mat Fac Low Low Dat Pro Fac Low Low Zio Dee Distress Signals 12 | . 2 . 2 . . . 6 . . . . . 2 . . . . Communications Jammed . | . . . . . . . . . . . . . . . . . . Distress Signals . | . . . . . . . . . . . . . . . . . . Times Spotted 203 | . 20 7 11 1 7 11 36 12 . 7 . . 21 8 2 54 6 Peak Tracking Total 8 | . 4 2 4 1 7 4 6 5 . 7 . . 8 4 4 5 2 Tactical Retreats 33 | . 1 . . . . . 5 1 . . . . 3 2 2 19 . Traps | -11 -10 -10 -9 -9 -9 -8 -8 -7 -7 -7 -7 -6 -6 -6 -6 -6 -6 ------- Run | Scr Mat Min Mat Min Exi Min Mat Fac Low Low Dat Pro Fac Low Low Zio Dee Traps Triggered 1 | . . . . . . . . 1 . . . . . . . . . Indirectly . | . . . . . . . . . . . . . . . . . . Trap Hack Attempts . | . . . . . . . . . . . . . . . . . . Triggered . | . . . . . . . . . . . . . . . . . . Disarmed . | . . . . . . . . . . . . . . . . . . Reprogrammed . | . . . . . . . . . . . . . . . . . . Reused . | . . . . . . . . . . . . . . . . . . Traps Extracted . | . . . . . . . . . . . . . . . . . . Installed . | . . . . . . . . . . . . . . . . . . Triggered 1 | . . . . . . . . . . . . . . 1 . . . Machines | -11 -10 -10 -9 -9 -9 -8 -8 -7 -7 -7 -7 -6 -6 -6 -6 -6 -6 ---------- Run | Scr Mat Min Mat Min Exi Min Mat Fac Low Low Dat Pro Fac Low Low Zio Dee Machines Disabled 6 | . . . . . 3 1 1 . . . . . . . . . 1 Max in Single Turn 1 | . . . . . 1 1 1 . . . . . . . . . 1 Garrison Access 1 | . . . . . . . . 1 . . . . . . . . . Machines Sabotaged . | . . . . . . . . . . . . . . . . . . Garrisons Compromised . | . . . . . . . . . . . . . . . . . . Overloaded Fab Kills . | . . . . . . . . . . . . . . . . . . Fab Network Shutdowns . | . . . . . . . . . . . . . . . . . . Hacking | -11 -10 -10 -9 -9 -9 -8 -8 -7 -7 -7 -7 -6 -6 -6 -6 -6 -6 --------- Run | Scr Mat Min Mat Min Exi Min Mat Fac Low Low Dat Pro Fac Low Low Zio Dee Machines Accessed 28 | . . 1 1 . 4 . 2 9 1 . 3 . 7 . . . . Terminals 13 | . . . 1 . . . 2 4 . . . . 6 . . . . Fabricators 2 | . . . . . . . . 2 . . . . . . . . . Repair Stations . | . . . . . . . . . . . . . . . . . . Recycling Units 2 | . . . . . . . . 2 . . . . . . . . . Scanalyzers 1 | . . . . . . . . . . . . . 1 . . . . Garrison Access 1 | . . . . . . . . 1 . . . . . . . . . Total Hacks 95 | . . 1 2 . 26 . 7 31 1 . 17 . 10 . . . . Successful 73 | . . 1 1 . 26 . 3 16 1 . 17 . 8 . . . . Failed 22 | . . . 1 . . . 4 15 . . . . 2 . . . . Catastrophic 2 | . . . . . . . . 1 . . . . 1 . . . . Database Lockouts . | . . . . . . . . . . . . . . . . . . Manual 37 | . . . 2 . 1 . 7 15 . . . . 8 . . 4 . Terminals 31 | . . . 2 . . . 7 13 . . . . 9 . . . . Fabricators 12 | . . . . . . . . 12 . . . . . . . . . Repair Stations . | . . . . . . . . . . . . . . . . . . Recycling Units 5 | . . . . . . . . 5 . . . . . . . . . Scanalyzers 1 | . . . . . . . . . . . . . 1 . . . . Garrison Access 1 | . . . . . . . . 1 . . . . . . . . . Terminal Hacks 55 | . . 1 1 . 26 . 2 3 1 . 17 . 4 . . . . Record 27 | . . . . . 25 . . . . . 1 . 1 . . . . Part Schematic 11 | . . . . . . . . 3 . . 7 . 1 . . . . Robot Schematic 6 | . . . . . . . . . . . 6 . . . . . . Prototype ID Bank 3 | . . . . . . . . . . . 3 . . . . . . Open Door 2 | . . 1 . . . . . . 1 . . . . . . . . Branch Access Points 2 | . . . 1 . . . . . . . . . 1 . . . . Recall Extermination 1 | . . . . . . . . . . . . . 1 . . . . Hauler Manifests 1 | . . . . . . . 1 . . . . . . . . . . Zone Layout 1 | . . . . . . . 1 . . . . . . . . . . EX-Prototype ID Bank 1 | . . . . . 1 . . . . . . . . . . . . Fabricator Hacks 8 | . . . . . . . . 8 . . . . . . . . . Network Status 2 | . . . . . . . . 2 . . . . . . . . . Load Schematic 2 | . . . . . . . . 2 . . . . . . . . . Build 4 | . . . . . . . . 4 . . . . . . . . . Repair Station Hacks . | . . . . . . . . . . . . . . . . . . Recycling Unit Hacks 1 | . . . . . . . . 1 . . . . . . . . . Retrieve Components 1 | . . . . . . . . 1 . . . . . . . . . Scanalyzer 1 | . . . . . . . . . . . . . 1 . . . . Insert Component 1 | . . . . . . . . . . . . . 1 . . . . Garrison Access Hacks 1 | . . . . . . . . 1 . . . . . . . . . Seal Access 1 | . . . . . . . . 1 . . . . . . . . . Unauthorized Hacks 7 | . . . . . . . 1 3 . . . . 3 . . . . Terminals 5 | . . . . . . . 1 1 . . . . 3 . . . . Track 1 | . . . . . . . 1 . . . . . . . . . . Assimilate 4 | . . . . . . . . 1 . . . . 3 . . . . Fabricators 2 | . . . . . . . . 2 . . . . . . . . . Prioritize 1 | . . . . . . . . 1 . . . . . . . . . Siphon 1 | . . . . . . . . 1 . . . . . . . . . Repair Stations . | . . . . . . . . . . . . . . . . . . Recycling Units . | . . . . . . . . . . . . . . . . . . Scanalyzers . | . . . . . . . . . . . . . . . . . . Garrison Access . | . . . . . . . . . . . . . . . . . . Data Cores Recovered . | . . . . . . . . . . . . . . . . . . Used . | . . . . . . . . . . . . . . . . . . Hacking Detections 12 | . . . 1 . . . 2 5 . . . . 4 . . . . Full Trace Events . | . . . . . . . . . . . . . . . . . . Feedback Events . | . . . . . . . . . . . . . . . . . . Feedback Blocked . | . . . . . . . . . . . . . . . . . . Robot Schematics Acquired 6 | . . . . . . . . . . . 6 . . . . . . Robots Built . | . . . . . . . . . . . . . . . . . . Matter . | . . . . . . . . . . . . . . . . . . Time . | . . . . . . . . . . . . . . . . . . Total Robot Build Rating . | . . . . . . . . . . . . . . . . . . Part Schematics Acquired 11 | . . . . . . . . 3 . . 7 . 1 . . . . Parts Built 4 | . . . . . . . . 4 . . . . . . . . . Matter 620 | . . . . . . . . 620 . . . . . . . . . Time 273 | . . . . . . . . 273 . . . . . . . . . Total Part Build Rating 17 | . . . . . . . . 17 . . . . . . . . . Parts Repaired . | . . . . . . . . . . . . . . . . . . Time . | . . . . . . . . . . . . . . . . . . Parts Recycled . | . . . . . . . . . . . . . . . . . . Recycled Matter . | . . . . . . . . . . . . . . . . . . Retrieved Matter . | . . . . . . . . . . . . . . . . . . Retrieved Components 1 | . . . . . . . . 1 . . . . . . . . . Parts Scanalyzed . | . . . . . . . . . . . . . . . . . . Part Schematics Acquired . | . . . . . . . . . . . . . . . . . . Parts Damaged . | . . . . . . . . . . . . . . . . . . Bothacking | -11 -10 -10 -9 -9 -9 -8 -8 -7 -7 -7 -7 -6 -6 -6 -6 -6 -6 ------------ Run | Scr Mat Min Mat Min Exi Min Mat Fac Low Low Dat Pro Fac Low Low Zio Dee Used RIF Installer . | . . . . . . . . . . . . . . . . . . Robots Hacked 1 | . . . . . . . . . . . 1 . . . . . . Non-combat . | . . . . . . . . . . . . . . . . . . Combat 1 | . . . . . . . . . . . 1 . . . . . . Robot Hacks Applied 1 | . . . . . . . . . . . 1 . . . . . . parse_system 1 | . . . . . . . . . . . 1 . . . . . . Relay Couplers Released . | . . . . . . . . . . . . . . . . . . Robots Rewired . | . . . . . . . . . . . . . . . . . . Allies Hacked . | . . . . . . . . . . . . . . . . . . Hacks Repelled . | . . . . . . . . . . . . . . . . . . Allies | -11 -10 -10 -9 -9 -9 -8 -8 -7 -7 -7 -7 -6 -6 -6 -6 -6 -6 -------- Run | Scr Mat Min Mat Min Exi Min Mat Fac Low Low Dat Pro Fac Low Low Zio Dee Total Allies 5 | . . . . . . . . 1 . . . 1 3 . . . . Largest Group 3 | . . . . . . . . 1 . . . 1 3 . . . . Highest-Rated Group 94 | . . . . . . . . 26 . . . 94 46 . . . . Highest-Rated Ally 94 | . . . . . . . . 26 . . . 94 26 . . . . Total Orders . | . . . . . . . . . . . . . . . . . . Ally Attacks 16 | . . . . . . . . . . . . . . . . 7 9 Total Damage . | . . . . . . . . . . . . . . . . . . Kills . | . . . . . . . . . . . . . . . . . . Allies Corrupted . | . . . . . . . . . . . . . . . . . . Allies Melted . | . . . . . . . . . . . . . . . . . . Intel | -11 -10 -10 -9 -9 -9 -8 -8 -7 -7 -7 -7 -6 -6 -6 -6 -6 -6 ------- Run | Scr Mat Min Mat Min Exi Min Mat Fac Low Low Dat Pro Fac Low Low Zio Dee Robot Analysis Total . | . . . . . . . . . . . . . . . . . . Derelict Logs Recovered 10 | . . 2 . . . . . . . . . 2 . 1 2 3 . Drone Launches 19 | . . . . . . . . . . . . . . . . 7 12 Drone Recoveries 3 | . . . . . . . . . . . . . . . . . 3 Exploration | -11 -10 -10 -9 -9 -9 -8 -8 -7 -7 -7 -7 -6 -6 -6 -6 -6 -6 ------------- Run | Scr Mat Min Mat Min Exi Min Mat Fac Low Low Dat Pro Fac Low Low Zio Dee Turns Passed 10757 | 78 660 520 681 181 1870 360 1325 962 102 193 46 109 799 116 148 2136 471 Spaces Moved 9777 | 44 300 266 314 96 823 150 469 1410 278 568 107 281 1921 366 472 1636 276 Core 120 | 4 . . . . . . . 114 . . . . . . . . 2 Treads 2815 | 40 300 266 314 96 823 150 469 6 . . . . . . . 351 . Legs 852 | . . . . . . . . . . . . . . . . 578 274 Wheels . | . . . . . . . . . . . . . . . . . . Hover . | . . . . . . . . . . . . . . . . . . Flight 5990 | . . . . . . . . 1290 278 568 107 281 1921 366 472 707 . Fastest Speed 26 | 50 160 180 180 180 180 220 200 26 29 26 29 29 26 26 26 29 50 Average Speed 85 | 150 172 180 181 181 198 220 202 38 29 29 29 29 26 26 28 97 139 Slowest Speed 250 | 160 180 180 200 200 220 220 225 250 29 32 32 29 29 26 29 180 140 Overloaded Moves . | . . . . . . . . . . . . . . . . . . Propulsion Burnouts . | . . . . . . . . . . . . . . . . . . Robots Hopped 22 | . . . . . . . . 4 . . . . 17 1 . . . Cave-ins Triggered . | . . . . . . . . . . . . . . . . . . Exploration Rate (%) 51 | 4 47 74 29 29 70 54 36 29 58 67 70 53 38 54 70 86 59 Regions Visited 17 Branch Regions 12 Pre-discovered Areas 6 | . . . . . 1 . . . . . 1 . . 1 . 3 . Known Exits Taken 10 | . . 1 1 . . . . 1 1 1 1 1 1 1 1 . . Unknown Exits Taken 7 | 1 1 . . 1 1 1 1 . . . . . . . . 1 . Scrap Searched 6 | . . . . . . . . . 1 2 . . . . 1 2 . Spaces Dug 111 | . . 12 . . . 15 1 36 . 1 . . 37 4 2 3 . Terrain Destroyed 236 | . . 36 14 4 38 46 3 37 . 1 . . 37 4 2 14 . Melee 80 | . . . . . . . 1 36 . 1 . . 36 4 2 . . Projectile 3 | . . . . . . . . . . . . . 1 . . 2 . AOE 152 | . . 36 14 4 38 46 2 . . . . . . . . 12 . Terrain Rammed 1 | . . . . . . . . 1 . . . . . . . . . Walls Destroyed 1 | . . . . . . . . 1 . . . . . . . . . Machines Disabled . | . . . . . . . . . . . . . . . . . . Actions | -11 -10 -10 -9 -9 -9 -8 -8 -7 -7 -7 -7 -6 -6 -6 -6 -6 -6 --------- Run | Scr Mat Min Mat Min Exi Min Mat Fac Low Low Dat Pro Fac Low Low Zio Dee Total 11455 | 53 381 293 387 104 958 168 676 1775 300 594 119 307 2135 377 481 2020 327 Wait 851 | . 18 . 13 . . . 71 246 21 25 11 27 175 8 7 198 31 Move 9720 | 43 299 265 313 95 822 149 468 1401 277 567 106 280 1890 363 471 1635 276 Hop 18 | . . . . . . . . 4 . . . . 13 1 . . . Pick Up 101 | 4 18 5 15 3 27 3 4 9 1 . . . 3 . 1 8 . Fast Attach 48 | 6 1 . 1 . 4 1 6 6 . . . . 2 . . 21 . Attach 55 | . . 3 3 . 12 1 8 15 . . 1 . 2 . . 9 1 Detach 21 | . . . 1 . 3 . 3 10 . . . . 2 . . 2 . Swap 48 | . 4 2 9 1 7 3 12 5 . . . . 1 . . 4 . Drop 77 | . 9 4 9 3 17 . 1 21 1 1 . . 2 . . 9 . Fire 342 | . 32 14 23 2 65 7 91 . . . 1 . 1 . . 105 1 Melee 170 | . . . . . 1 4 11 57 . 1 . . 44 5 2 28 17 Ram 2 | . . . . . . . . 1 . . . . . . . . 1 Kick 1 | . . . . . . . . . . . . . . . . 1 . Crush 1 | . . . . . . . 1 . . . . . . . . . . Escape Stasis . | . . . . . . . . . . . . . . . . . . Rewire . | . . . . . . . . . . . . . . . . . . Trap . | . . . . . . . . . . . . . . . . . . Miscellaneous . | . . . . . . . . . . . . . . . . . . Route ------- -11/Scrapyard -10/Materials (discovered 2 exits: *Mat / *Min) -10/Mines (discovered 2 exits: *Mat x2) -9/Materials (discovered 3 exits: *Mat / *Min x2) -9/Mines -9/Exiles -8/Mines -8/Materials -7/Factory (discovered 2 exits: *Fac / *Low) -7/Lower Caves (discovered 2 exits: *Low / *Zio) -7/Lower Caves (discovered 2 exits: *Fac / *Dat) -7/Data Miner -6/Proximity Caves -6/Factory (discovered 3 exits: *Fac / *Low x2) -6/Lower Caves -6/Lower Caves (discovered 2 exits: *Fac / *Zio) -6/Zion (discovered 2 exits: [*Dee] / [*Pro]) -6/Deep Caves History --------- Turn | Location | Event 5 | -11/Scrapyard | Discovered new exit (range 16) 79 | -11/Scrapyard | Entered Materials 307 | -10/Materials | Build established: Mutant 453 | -10/Materials | Discovered new exit (range 5) 719 | -10/Materials | Discovered new exit (range 6) 739 | -10/Materials | Entered Mines 746 | -10/Mines | Found the Drone Emporium 757 | -10/Mines | Found Prototype Device 789 | -10/Mines | Learned Materials trap positions 812 | -10/Mines | Received a Rocket Launcher from a helpful Derelict 904 | -10/Mines | Assembled infested the area 909 | -10/Mines | Assisted by a Guerilla fighting off Assembled 1068 | -10/Mines | Core integrity fell below 50% 1108 | -10/Mines | Lost 3 parts (1p2w) 1109 | -10/Mines | Identified exit to Materials 1231 | -10/Mines | Discovered exit to Materials (range 11) 1259 | -10/Mines | Entered Materials 1259 | -9/Materials | Evolved 2 slots: Utility x2 1260 | -9/Materials | Loaded intel: 8 trap records 1418 | -9/Materials | Identified exit to Mines 1566 | -9/Materials | Build established: Hauler-Mutant 1615 | -9/Materials | Discovered new exit (range 15) 1940 | -9/Materials | Entered Mines 2114 | -9/Mines | Deemed a non-threat by the Exiles lab entrance 2114 | -9/Mines | Discovered new exit (range 5) 2121 | -9/Mines | Entered Exiles 2150 | -9/Exiles | Discovered new exit (range 15) 2166 | -9/Exiles | Met 8R-AWN 2195 | -9/Exiles | Met EX-HEX 2304 | -9/Exiles | Met EX-DEC 2348 | -9/Exiles | Learned location of Zion (-6) 2382 | -9/Exiles | Met EX-BIN 2822 | -9/Exiles | Aligned with FarCom system 2824 | -9/Exiles | Given EX-Vault access code 2876 | -9/Exiles | Opened EX-Vault 2886 | -9/Exiles | Found Lightpack 2.0 2893 | -9/Exiles | Found Longsword +1 2940 | -9/Exiles | Warned to stay clear of 0b10 Research branches 3564 | -9/Exiles | Attacked by the Exiles 3580 | -9/Exiles | Destroyed EX-HEX 3660 | -9/Exiles | Core integrity fell below 50% 3745 | -9/Exiles | Destroyed 8R-AWN 3754 | -9/Exiles | Found Prototype Ballistic Gun 3757 | -9/Exiles | Found Prototype Protection 3758 | -9/Exiles | Identified 8R-AWN's Armor/EX 3766 | -9/Exiles | Found Prototype Processor 3775 | -9/Exiles | Lost 13 parts (2p2n3u6w) 3972 | -9/Exiles | Identified 8R-AWN's Boregun 3991 | -9/Exiles | Stole two prototypes: Lightpack 2.0, Longsword +1 3991 | -9/Exiles | Entered Mines 4250 | -8/Mines | Core integrity fell below 20% 4277 | -8/Mines | Destroyed 8 combat bots 4319 | -8/Mines | Discovered new exit (range 3) 4351 | -8/Mines | Entered Materials 4351 | -8/Materials | Evolved 2 slots: Propulsion x1, Utility x1 4909 | -8/Materials | Lost 5 parts (2n3w) 4990 | -8/Materials | Discovered new exit (range 14) 5359 | -8/Materials | Core integrity fell below 50% 5366 | -8/Materials | Lost 3 parts (2n1w) 5676 | -8/Materials | Entered Factory 5676 | -7/Factory | Evolved 2 slots: Propulsion x1, Utility x1 5740 | -7/Factory | Discovered new exit (range 15) 5749 | -7/Factory | Identified exit to Lower Caves 5782 | -7/Factory | Discovered new exit (range 12) 5793 | -7/Factory | Identified exit to Factory 6257 | -7/Factory | Fabricated Imp. Phase Shifter (x1) 6456 | -7/Factory | Fabricated Lrn. Sensor Array? 6542 | -7/Factory | Fabricated Hacking Suite (x1) 6580 | -7/Factory | Fabricated Hacking Suite (x1) 6638 | -7/Factory | Entered Lower Caves 6723 | -7/Lower Caves | Encountered a Warlord checkpoint 6731 | -7/Lower Caves | Discovered new exit (range 15) 6734 | -7/Lower Caves | Identified exit to Lower Caves 6735 | -7/Lower Caves | A Derelict revealed a hidden shortcut to a safe place 6739 | -7/Lower Caves | Identified exit to Zion 6740 | -7/Lower Caves | Entered another Lower Caves area 6748 | -7/Lower Caves | Encountered a Warlord checkpoint 6810 | -7/Lower Caves | Discovered exit to Factory (range 13) 6867 | -7/Lower Caves | Spotted B-75 Beast 6898 | -7/Lower Caves | Spotted ZQ-05D(f) 6898 | -7/Lower Caves | Spotted F5-NDK(f) 6898 | -7/Lower Caves | Spotted 93-Q02(f) 6899 | -7/Lower Caves | Encountered a Master Thief 6899 | -7/Lower Caves | Encountered a Master Thief 6899 | -7/Lower Caves | Encountered a Master Thief 6899 | -7/Lower Caves | Spotted 1C-AUR(f) 6900 | -7/Lower Caves | Encountered a Master Thief 6900 | -7/Lower Caves | Spotted LA-BML(f) 6901 | -7/Lower Caves | Encountered a Master Thief 6908 | -7/Lower Caves | Longsword +1 stolen by Master Thief 6932 | -7/Lower Caves | Discovered new exit (range 3) 6933 | -7/Lower Caves | Identified exit to Data Miner 6933 | -7/Lower Caves | Entered Data Miner 6933 | -7/Data Miner | Discovered new exit (range 6) 6940 | -7/Data Miner | Met Data Miner 6949 | -7/Data Miner | Learned location of Section 7 (-2) 6954 | -7/Data Miner | Received God Mode back door access code from Data Miner 6978 | -7/Data Miner | Identified exit to Proximity Caves 6979 | -7/Data Miner | Entered Proximity Caves 6991 | -6/Proximity Caves | Learned Factory interactive machine intel 7044 | -6/Proximity Caves | Escorted by Enhanced Grunt 7088 | -6/Proximity Caves | Entered Factory 7088 | -6/Factory | Evolved 2 slots: Power x1, Utility x1 7089 | -6/Factory | Loaded intel: 45 interactive machine locations 7408 | -6/Factory | Build established: Hacker-Sprinter 7444 | -6/Factory | Identified Bomb Drone Bay 7487 | -6/Factory | Discovered new exit (range 16) 7500 | -6/Factory | Identified exit to Factory 7589 | -6/Factory | Identified exit to Lower Caves 7887 | -6/Factory | Entered Lower Caves 7986 | -6/Lower Caves | Learned location of Extension (-4) 7987 | -6/Lower Caves | Discovered new exit (range 10) 8003 | -6/Lower Caves | Identified exit to Lower Caves 8003 | -6/Lower Caves | Entered another Lower Caves area 8007 | -6/Lower Caves | Discovered exit to Factory (range 10) 8016 | -6/Lower Caves | Spotted B-75 Beast 8099 | -6/Lower Caves | Learned Factory garrison access intel 8151 | -6/Lower Caves | Entered Zion 8169 | -6/Zion | Discovered new exit (range 15) 8176 | -6/Zion | Found CR-A16's Pointy Stick 8199 | -6/Zion | Learned Factory emergency access door positions 8205 | -6/Zion | Learned Factory trap positions 8251 | -6/Zion | Learned location of Warlord (-5) 8280 | -6/Zion | Acquired unknown access codes intercepted by a Zionite 8308 | -6/Zion | Given the Hacking Drone Bay 8310 | -6/Zion | Found Prototype Device 8498 | -6/Zion | Found Prototype Launcher 8498 | -6/Zion | Identified Gui. Missile Launcher 8666 | -6/Zion | Build established: Hauler-Mutant 8942 | -6/Zion | Attacked by Zionites 9033 | -6/Zion | System corruption reached 10% 9079 | -6/Zion | Lost 5 parts (2n2u1w) 9478 | -6/Zion | Build established: Scavenger-Mutant 9551 | -6/Zion | Lost 8 parts (2p4n2w) 9563 | -6/Zion | Core integrity fell below 50% 9615 | -6/Zion | Lost 3 parts (2u1w) 9892 | -6/Zion | Build established: Mutant 10155 | -6/Zion | Extracted access codes from Imprinter's data core 10261 | -6/Zion | Opened final containment barrier to the Deep Caves 10284 | -6/Zion | Discovered new exit (range 3) 10284 | -6/Zion | Saw the warning signs outside the Deep Caves entrance 10287 | -6/Zion | Entered Deep Caves 10482 | -6/Deep Caves | Z-Facility disabled 10702 | -6/Deep Caves | Spotted as-54342 10720 | -6/Deep Caves | Exposed GOLEM chamber 10746 | -6/Deep Caves | Core integrity fell below 20% 10758 | -6/Deep Caves | Destroyed by as-54342 with Assembled Focal Cannon Last Messages --------------- 10719_ as-54342 GOLEM Unit beginning Prototype Energy Cannon integration. 10719_ Bomb Drone sneak attacks. 10719_ Bomb Drone detonates. 10719_ Bomb Drone destroyed. 10720_ Bomb Drone detonates. 10720_ Bomb Drone destroyed. 10724_ Bomb Drone released from Bomb Drone Bay. 10725_ 10752_ CR-A16's Pointy Stick destroyed. 10755_ Hvy. Rocket Launcher destroyed. 10757_ Slammed into as-54342. Map ----- +----------------------------------------------------+ | ????????????????????????????????????????????? | | ????????????????????????????????????????????? | | ????????????????????????????????????????????? | | ????????????????????????????????????????????? | | ????????????????????????????????????????????? | | ????????????????????????????????????????????? | | ????????????????????????????????????????????? | | ????????????????????????????????????????????? | | ??????????? ?????????????????????????? | | ????????? ??????????????#????????? | | ????????# ? ??????# ???????? | | ????????# h ??????# ???####? | | ????????# = ! ??????# ??## ## | | ????????? = = ! #?????# ??# # | | ?????????" #?????# ?## | | ?????????" l = #?????# ## | | ????????"" M h #?????# | | ????????"G = *=* ##?????# | | ????????!G #?????# | | ????????# =*M #?????## | | ????????" #??????# # | | ????????" ######## ## | | ????????" #? | | ????????""" ## | | ????????" % # | | ????????"" @ G #### # | | ????????" ;#?## ## | | ????????"" ;##??# ### ##? | | ????????" ; ; ;#??# #?#####?? | | ????????" ;# ;# ###??## #???????? | | ????????""" # # ## ####?????####???????? | | ?????????" ##### #???????????????????? | | ?????????##"###;##????###???????????????????? | | | | | | | | | | | | | | | | | | | | | | | | | | | | | | | | | | | +----------------------------------------------------+ Best States ------------- Heat Dissipation 37 Energy Generation 27 Energy Capacity 310 Matter Stores 300 Matter Capacity 300 Sight Range 20 Robot Scan Range 20 Terrain Scan Density 10 Armor Coverage 300 Phase Shifting 10 Evasion (%) 64 Recoil Reduction 3 Offensive Hacking 27 Defensive Hacking 10 Item Schematics ----------------- Lrn. Sensor Array | -7/Factory | Hacked Hacking Suite | -7/Factory | Hacked Adv. Signal Interpreter | -7/Factory | Hacked Combat Drone Bay | -7/Data Miner | Free Lgt. Regenerative Plating | -7/Data Miner | Free Exp. Flexi-carbon Leg | -7/Data Miner | Free Exp. Sensor Array | -7/Data Miner | Free Exp. Terrain Scan Processor | -7/Data Miner | Free Exp. ECM Suite | -7/Data Miner | Free Mni. Smartbomb Launcher | -7/Data Miner | Free Imp. Hacking Suite | -6/Factory | Hacked Robot Schematics ------------------ S-27 Virus | -7/Data Miner | Free G-50 Soldier | -7/Data Miner | Free G-67 Veteran | -7/Data Miner | Free X-72 Disruptor | -7/Data Miner | Free H-66 Slayer | -7/Data Miner | Free I-36 Angel | -7/Data Miner | Free Fabricated ------------ Imp. Phase Shifter | x1 | -7/Factory | Preloaded Lrn. Sensor Array | x1 | -7/Factory Hacking Suite | x1 | -7/Factory Hacking Suite | x1 | -7/Factory Alien Tech Used ----------------- None Achievements -------------- None Challenges ------------ None Game ------ Seed NeutronVisualTendrils Manual? 0 Play Time 02:00:53 Cumulative 119.8 hours Start 2020.10.29 @ 21:05:40 End 2020.10.29 @ 23:54:23 Sessions 1 Manual Loads 0 Difficulty Rogue Special Mode Halloween2020/ForbiddenLore Game No. 150 Rogue 63 Adventurer 87 Explorer 0 Win Type - Total 4 Types 3/0/0/1/0/0/0/0/0 Lore% 53 Gallery% 64 Achievement% 55 Wizard Run 0 Options --------- ASCII 0 Keyboard 1 Movement Numpad Keybinds 0 Fullscreen 1 Font 18/Smallcaps Map View 76x50 Tactical HUD 1 Map Filters NONE Filters NONE Steam 1 RUN: ef260b1c-fe82-46f3-80ce-51381719de75